Cogmind - Beta 10.2 @@@ ROGUE MODE // 2021.01.13 @ 21:29:56 // AFD2018/Launchers Player: Michael Result: Self-destructed Performance ------------- Evolutions (6) 3000 Regions Visited (11) 2200 Robots Destroyed (178) 890 Value Destroyed (4363) 4363 Prototype IDs (10) 200 Alien Tech Used (0) 0 Bonus (1312) 1312 TOTAL SCORE: 11965 Bonus ------- High Alert Combat Kills 1125 Follower Combat Kills 753 Aligned with FarCom 300 Friendly Fire -866 Cogmind --------- Core Integrity 175/1150 Matter 300/300 Energy 100/100 System Corruption 1% Temperature Cool (0) Movement Core (50) Location -4/Factory Parts ------- > --- POWER (2) -------- (None) > --- PROPULSION (6) --- (None) > --- UTILITY (8) ------ (None) > --- WEAPON (3) ------- (None) > --- INVENTORY (4) ---- Medium Storage Unit Propulsion Shielding Mini Assault Cannon Long-range Missile Launcher Peak State ------------ > --- POWER ------------ Heavy Deuterium Engine Enhanced Nuclear Core > --- PROPULSION ------- Wheel Wheel Wheel Armored Wheel Armored Wheel > --- UTILITY ---------- Medium Storage Unit Medium Storage Unit Medium Storage Unit Kinecellerator > --- WEAPON ----------- Improved EM Pulse Cannon Mini Assault Cannon Heavy Rocket Launcher > --- INVENTORY -------- Heavy Deuterium Engine Enhanced Nuclear Core Enhanced Nuclear Core Cooled VTOL Module Cooled VTOL Module Medium Matter Pod Kinecellerator Improved Light Armor Plating Improved Assault Rifle Advanced Assault Cannon Advanced EMP Blaster Advanced EMP Blaster Heavy Missile Launcher Heavy Missile Launcher Long-range Missile Launcher Long-range Missile Launcher [Rating: 43] Favorites ----------- Power Enhanced Nuclear Core Engine Improved Deuterium Engine Power Core Enhanced Nuclear Core Propulsion Wheel Wheel Wheel Flight Unit Nuclear Pulse Thruster Utility Medium Storage Unit Device Kinecellerator Storage Medium Storage Unit Protection Improved Light Armor Plating Weapon Advanced EMP Blaster Energy Gun Improved EM Shotgun Energy Cannon Improved EM Pulse Cannon Ballistic Gun Improved Assault Rifle Ballistic Cannon Mini Assault Cannon Launcher Advanced EMP Blaster Build | -11 -10 -10 -10 -9 -8 -7 -7 -7 -6 -5 -4 ------- Run | Scr Mat Min Exi Min Mat Fac Was Fac Fac Fac Fac Slots Evolved 12 | . . . . . 4 2 . . 2 2 2 Power 1 | . . . . . 1 . . . . . . Propulsion 4 | . . . . . 1 1 . . 2 . . Utility 6 | . . . . . 1 1 . . . 2 2 Weapon 1 | . . . . . 1 . . . . . . Parts Attached 195 | 1 8 3 . 5 29 61 . 29 44 15 . Power 21 | . . . . . 2 8 . 5 4 2 . Engine 12 | . . . . . 2 7 . 1 2 . . Core 9 | . . . . . . 1 . 4 2 2 . Reactor . | . . . . . . . . . . . . Propulsion 44 | . 3 . . 2 10 14 . 5 8 2 . Treads . | . . . . . . . . . . . . Leg . | . . . . . . . . . . . . Wheel 39 | . 3 . . 2 10 14 . 5 5 . . Hover . | . . . . . . . . . . . . Flight 5 | . . . . . . . . . 3 2 . Utility 23 | . 3 . . 2 4 8 . 1 3 2 . Device 9 | . 2 . . 1 2 2 . . 1 1 . Storage 7 | . 1 . . 1 2 1 . 1 . 1 . Processor . | . . . . . . . . . . . . Hackware . | . . . . . . . . . . . . Protection 7 | . . . . . . 5 . . 2 . . Artifact . | . . . . . . . . . . . . Weapon 107 | 1 2 3 . 1 13 31 . 18 29 9 . Energy Gun 7 | . . . . . 3 4 . . . . . Energy Cannon 2 | . . . . . . . . . 2 . . Ballistic Gun 18 | . . . . 1 3 9 . 4 1 . . Ballistic Cannon 17 | . . . . . . . . 4 6 7 . Launcher 63 | 1 2 3 . . 7 18 . 10 20 2 . Special Weapon . | . . . . . . . . . . . . Impact Weapon . | . . . . . . . . . . . . Slashing Weapon . | . . . . . . . . . . . . Piercing Weapon . | . . . . . . . . . . . . Special Melee Weapon . | . . . . . . . . . . . . Unidentified Prototypes 8 | . . . . . 4 1 . 3 . . . Parts Lost 51 | . 2 3 . . 8 14 . . 21 1 2 Power 6 | . . . . . . 4 . . 2 . . Propulsion 27 | . 1 1 . . 5 6 . . 11 1 2 Utility 4 | . 1 . . . 1 . . . 2 . . Weapon 14 | . . 2 . . 2 4 . . 6 . . Highest Loss Streak 8 | . 2 3 . . 5 8 . . 5 1 2 Average Slot Usage (%) 74 | . 34 47 42 78 80 94 100 99 70 25 19 Engine 5 | . . . . . 3 12 15 4 5 . . Core 3 | . . . . . . 1 . 10 5 3 3 Wheel 20 | . 8 15 14 25 25 28 30 30 16 . . Flight 2 | . . . . . . . . . 3 12 7 Device 5 | . 5 2 . 8 7 6 7 7 4 . . Storage 14 | . 5 14 14 15 18 15 15 18 15 1 . Protection 2 | . . . . . . 5 7 4 . 5 4 Energy Gun 2 | . . . . . 6 4 . . . . . Ballistic Gun 2 | . . . . 13 2 5 7 3 1 . . Ballistic Cannon 1 | . . . . . . . . 3 3 1 3 Launcher 11 | . 14 16 14 14 17 11 15 14 9 . . Naked Turns 61 | . 1 . . . . . . . . . 60 Heaviest Build 72 | 3 12 15 11 21 39 62 59 67 72 25 15 Greatest Support 54 | 3 20 20 10 20 30 44 44 44 54 21 16 Greatest Overweight (x) 7 | . 1 1 1 1 2 4 1 1 7 1 . Average Overweight (x) . | . . . 1 . . . 1 1 . . . Largest Inventory Capacity 16 | 4 8 8 8 12 16 12 12 16 16 8 4 Average Capacity 11 | 4 5 8 8 8 12 12 12 13 13 4 4 Most Carried 16 | 4 8 8 7 9 12 12 12 16 16 4 4 Average Carried 10 | 2 4 6 7 7 10 11 12 13 12 3 3 Final Capacity 16 | 4 8 8 8 12 12 12 12 16 4 4 4 Final Carried 16 | 4 8 7 7 9 12 12 12 16 4 4 4 Class Distribution -------------------- 50% | Scavenger-Mutant 28% | Mutant 15% | Scavenger-Skirmisher 4% | Sprinter Dominant Class ---------------- Mutant | -10/Materials Mutant | -10/Mines Mutant | -10/Exiles Mutant | -9/Mines Scavenger-Skirmisher | -8/Materials Scavenger-Mutant | -7/Factory Scavenger-Mutant | -7/Waste Scavenger-Mutant | -7/Factory Scavenger-Mutant | -6/Factory Mutant | -5/Factory Mutant | -4/Factory Resources | -11 -10 -10 -10 -9 -8 -7 -7 -7 -6 -5 -4 ----------- Run | Scr Mat Min Exi Min Mat Fac Was Fac Fac Fac Fac Matter Collected 4943 | . 354 137 . 294 449 1336 . 676 1351 316 30 Remotely 442 | . 115 . . 229 98 . . . . . . Salvage Created 6681 | . 461 127 . 324 964 1722 . 951 1755 377 . Parts 306 | . 21 1 . 11 55 82 . 61 63 12 . Haulers Intercepted 12 | . 2 . . . 3 3 . 3 1 . . Recyclers Shooed 16 | . 1 1 . 3 1 3 . 5 1 1 . Parts Field Recycled . | . . . . . . . . . . . . Retrieved Matter . | . . . . . . . . . . . . Parts Self-Destructed . | . . . . . . . . . . . . Prevented . | . . . . . . . . . . . . Kills | -11 -10 -10 -10 -9 -8 -7 -7 -7 -6 -5 -4 ------- Run | Scr Mat Min Exi Min Mat Fac Was Fac Fac Fac Fac Combat Hostiles Destroyed 92 | . 4 16 . . 14 22 . 12 24 . . Guns 12 | . . . . . 6 4 . 2 . . . Cannons 5 | . . . . . . . . 1 4 . . AOE 70 | . 4 16 . . 8 15 . 9 18 . . Classes Destroyed 19 | . 5 2 . 1 3 1 . 3 3 1 . Worker 36 | . 6 . . 3 2 16 . 2 7 . . Builder 12 | . . . . . 4 . . 4 4 . . Tunneler 5 | . . . . 2 1 . . . 2 . . Hauler 12 | . 2 . . . 3 3 . 3 1 . . Recycler 23 | . 4 1 . 3 . 6 . 3 3 3 . Mechanic 1 | . . . . . . . . . 1 . . Operator 1 | . . . . . . . . . . 1 . Watcher 5 | . 1 . . . 2 1 . 1 . . . Swarmer 17 | . . 2 . . 3 8 . 4 . . . Saboteur 1 | . . . . . . . . . 1 . . Grunt 27 | . 4 . . . 3 4 . 4 12 . . Brawler 2 | . . . . . . . . 1 1 . . Duelist 1 | . . . . . . . . . 1 . . Sentry 18 | . . . . . 6 7 . 2 3 . . Hunter 5 | . . . . . 2 1 . . 2 . . Programmer 6 | . . . . . . 2 . 1 3 . . Behemoth 1 | . . . . . . . . . 1 . . Assembled 14 | . . 14 . . . . . . . . . Surgeon 1 | . . . . . . . . 1 . . . Wasp 2 | . . . . . . . . 2 . . . Martyr 2 | . . . . . . . . 2 . . . Best Kill Streak 14 | . 8 14 . 2 5 8 . 7 10 1 . Combat Bots Only 14 | . 2 14 . . 4 8 . 5 7 . . Max Kills in Single Turn 10 | . 2 10 . 1 2 4 . 4 4 1 . Gunslinging . | . . . . . . . . . . . . Exploded 10 | . 1 10 . . 2 4 . 2 4 . . Melee . | . . . . . . . . . . . . Uniques/NPCs Destroyed . | . . . . . . . . . . . . Combat | -11 -10 -10 -10 -9 -8 -7 -7 -7 -6 -5 -4 -------- Run | Scr Mat Min Exi Min Mat Fac Was Fac Fac Fac Fac Damage Taken 7024 | . 79 250 . . 992 1836 . 457 2161 169 1080 Core 2009 | . 10 22 . . 194 258 . 63 416 71 975 Absorbed by Shields 6 | . . . . . . . . . . . 6 Core Remaining (%) 74 | 100 . . . 87 64 . . 54 51 92 . Volleys Fired 369 | . 22 10 . 30 43 104 . 39 88 25 8 Largest 3 | . 1 2 . 1 3 3 . 3 3 1 1 Hottest 140 | . 30 60 . 20 110 114 . 126 140 48 48 Shots Fired 534 | . 22 14 . 30 71 172 . 59 133 25 8 Gun 233 | . . . . 30 49 128 . 16 10 . . Cannon 106 | . . . . . . . . 25 51 22 8 Launcher 195 | . 22 14 . . 22 44 . 18 72 3 . Special . | . . . . . . . . . . . . Kinetic 260 | . . . . 30 7 95 . 41 57 22 8 Thermal . | . . . . . . . . . . . . Explosive 107 | . 22 14 . . 7 24 . 9 28 3 . Electromagnetic 167 | . . . . . 57 53 . 9 48 . . Robot Hit Streak 15 | . 7 4 . 12 14 15 . 11 11 7 . Robot Miss Streak 4 | . 2 1 . 4 3 4 . 3 4 1 . Penetration Max . | . . . . . . . . . . . . Secondary Targets 1 | . . . . . 1 . . . . . . Max Gunslinging Chain 1 | . . . . . 1 . . . . . . Shots Hit Robots 333 | . 12 8 . 22 50 112 . 32 79 18 . Core Hits 347 | . 25 33 . 12 44 90 . 53 81 8 1 Critical Hits 4 | . . . . . . 1 . 1 2 . . Critical Kills 1 | . . . . . . . . . 1 . . Critical Parts Destroyed 3 | . . . . . . 1 . 1 1 . . Melee Attacks . | . . . . . . . . . . . . Impact . | . . . . . . . . . . . . Slashing . | . . . . . . . . . . . . Piercing . | . . . . . . . . . . . . Sneak Attacks . | . . . . . . . . . . . . Combat Hostiles . | . . . . . . . . . . . . Follow-up Attacks . | . . . . . . . . . . . . Damage Inflicted 17449 | . 1047 1241 . 300 1949 3784 . 2785 5792 532 19 Guns 2444 | . . . . 300 697 1140 . 203 104 . . Cannons 1937 | . . . . . . . . 518 923 496 . Explosions 13049 | . 1047 1241 . . 1252 2644 . 2064 4765 36 . Melee . | . . . . . . . . . . . . Ramming 19 | . . . . . . . . . . . 19 Kinetic 3241 | . . . . 300 33 741 . 721 950 496 . Thermal 716 | . . . . . 145 143 . 321 107 . . Explosive 8291 | . 1047 1241 . . 566 1595 . 1185 2621 36 . Electromagnetic 5182 | . . . . . 1205 1305 . 558 2114 . . Impact . | . . . . . . . . . . . . Slashing . | . . . . . . . . . . . . Piercing . | . . . . . . . . . . . . Highest Corruption 2 | . . . . . . 1 1 2 1 . 1 Average Corruption 1 | . . . . . . 1 1 1 1 . 1 Corruption Purged . | . . . . . . . . . . . . Effects 15 | . . . . . . . 1 11 3 . . Message Errors 3 | . . . . . . . . 3 . . . Heat Flow Errors 1 | . . . . . . . . 1 . . . Energy Discharges 3 | . . . . . . . 1 1 1 . . Data Loss (minor) 4 | . . . . . . . . 4 . . . Targeting Errors 2 | . . . . . . . . 1 1 . . Weapon Failures 2 | . . . . . . . . 1 1 . . Overload Shots . | . . . . . . . . . . . . Overflow Damage 531 | . 18 62 . . 69 136 . 51 149 46 . Projectiles 87 | . . . . . . . . . 41 46 . Explosions 444 | . 18 62 . . 69 136 . 51 108 . . Melee . | . . . . . . . . . . . . Knockbacks 16 | . . . . . . . . 2 8 6 . Impact . | . . . . . . . . . . . . Kinetic 16 | . . . . . . . . 2 8 6 . Secondary . | . . . . . . . . . . . . Self-Inflicted Damage 734 | . 61 36 . . 89 234 . 81 224 . 9 Shots 28 | . 3 2 . . 3 7 . 2 11 . . Rammed 3 | . . . . . . . . . . . 3 Targets Rammed 3 | . . . . . . . . . . . 3 Kicked . | . . . . . . . . . . . . Crushed . | . . . . . . . . . . . . Highest Temperature 367 | . 11 20 . . 147 141 . 168 367 . . Average Temperature 56 | . 5 11 . . 63 32 . 41 84 . . Received Heat Transfer 1363 | . 12 40 . . 261 462 . 99 336 57 96 Siege Activations . | . . . . . . . . . . . . Robots Corrupted 7 | . . . . . . 3 . 1 3 . . Combat Hostiles 5 | . . . . . . 3 . . 2 . . Parts Fried 28 | . . . . . 8 5 . 2 13 . . Impact Corruptions . | . . . . . . . . . . . . Robots Melted . | . . . . . . . . . . . . Combat Hostiles . | . . . . . . . . . . . . Parts Melted . | . . . . . . . . . . . . Heat Transferred 900 | . . . . . 100 150 . 400 250 . . Parts Sabotaged 2 | . . . . . . . . . 2 . . Parts Stolen . | . . . . . . . . . . . . Parts Stripped . | . . . . . . . . . . . . Power Chain Reactions 16 | . . . . . 4 3 . 3 6 . . Missiles Intercepted . | . . . . . . . . . . . . Alert | -11 -10 -10 -10 -9 -8 -7 -7 -7 -6 -5 -4 ------- Run | Scr Mat Min Exi Min Mat Fac Was Fac Fac Fac Fac Peak Influence 1472 | . 251 120 . 55 314 1092 359 1472 1316 1105 812 Initial 721 | . . 95 . . 21 112 359 251 721 644 529 Average 592 | . 162 103 . 26 94 534 359 962 805 925 581 Maximum Alert Level 4 | . 1 . . . 1 3 1 4 4 4 3 Low Security (%) 22 | 100 63 100 . 100 91 4 . . . . . Level 1 10 | . 36 . . . 8 25 100 5 . . . Level 2 30 | . . . . . . 56 . 15 35 31 94 Level 3 28 | . . . . . . 13 . 43 51 68 5 Level 4 8 | . . . . . . . . 34 12 . . Level 5 . | . . . . . . . . . . . . High Security . | . . . . . . . . . . . . Max Security . | . . . . . . . . . . . . Squads Dispatched 39 | . . . . . 2 11 . 10 12 2 2 Investigation 5 | . . . . . 1 . . 1 3 . . Extermination 6 | . . . . . . 2 . 1 3 . . Reinforcement 20 | . . . . . 1 6 . 8 3 . 2 Assault 5 | . . . . . . . . . 3 2 . Garrison 3 | . . . . . . 3 . . . . . Intercept . | . . . . . . . . . . . . Construction Impeded 7 | . . . . . . 3 . 3 1 . . Haulers Reinforced 5 | . . . . . . 1 . 4 . . . Stealth | -11 -10 -10 -10 -9 -8 -7 -7 -7 -6 -5 -4 --------- Run | Scr Mat Min Exi Min Mat Fac Was Fac Fac Fac Fac Distress Signals 10 | . . . . . 3 2 . 2 1 . 2 Communications Jammed . | . . . . . . . . . . . . Distress Signals . | . . . . . . . . . . . . Times Spotted 225 | . 9 21 . . 24 40 . 34 58 12 27 Peak Tracking Total 20 | . 3 20 . . 5 8 . 5 7 11 16 Tactical Retreats 18 | . 2 . . . 1 2 . 2 5 2 4 Traps | -11 -10 -10 -10 -9 -8 -7 -7 -7 -6 -5 -4 ------- Run | Scr Mat Min Exi Min Mat Fac Was Fac Fac Fac Fac Traps Triggered 20 | . 1 . . . 1 4 . 6 5 1 2 Indirectly 9 | . . . . . . 2 . 4 3 . . Trap Hack Attempts . | . . . . . . . . . . . . Triggered . | . . . . . . . . . . . . Disarmed . | . . . . . . . . . . . . Reprogrammed . | . . . . . . . . . . . . Reused . | . . . . . . . . . . . . Traps Extracted . | . . . . . . . . . . . . Installed . | . . . . . . . . . . . . Triggered 1 | . . . . . . 1 . . . . . Machines | -11 -10 -10 -10 -9 -8 -7 -7 -7 -6 -5 -4 ---------- Run | Scr Mat Min Exi Min Mat Fac Was Fac Fac Fac Fac Machines Disabled 38 | . 2 . . 1 2 10 . 11 11 1 . Max in Single Turn 4 | . 1 . . 1 1 3 . 1 4 1 . Garrison Access 1 | . . . . . . . . . 1 . . Machines Sabotaged . | . . . . . . . . . . . . Garrisons Compromised . | . . . . . . . . . . . . Overloaded Fab Kills . | . . . . . . . . . . . . Fab Network Shutdowns 2 | . . . . . . 1 . . . 1 . Hacking | -11 -10 -10 -10 -9 -8 -7 -7 -7 -6 -5 -4 --------- Run | Scr Mat Min Exi Min Mat Fac Was Fac Fac Fac Fac Machines Accessed 68 | . 2 . 1 . 10 12 . 12 14 12 5 Terminals 41 | . 1 . . . 8 6 . 7 10 6 3 Fabricators 9 | . . . . . . 3 . 2 1 2 1 Repair Stations 1 | . . . . . . 1 . . . . . Recycling Units 14 | . 1 . . . 2 2 . 2 2 4 1 Scanalyzers 1 | . . . . . . . . 1 . . . Garrison Access 1 | . . . . . . . . . 1 . . Total Hacks 161 | . 6 . 1 . 24 22 . 39 28 31 10 Successful 74 | . 2 . 1 . 10 12 . 20 10 14 5 Failed 87 | . 4 . . . 14 10 . 19 18 17 5 Catastrophic 19 | . 1 . . . 3 2 . 1 6 3 3 Database Lockouts . | . . . . . . . . . . . . Manual 48 | . . . . . 11 8 . 8 8 9 4 Terminals 106 | . 3 . . . 22 12 . 25 22 15 7 Fabricators 23 | . . . . . . 5 . 6 2 8 2 Repair Stations 2 | . . . . . . 2 . . . . . Recycling Units 23 | . 3 . . . 2 3 . 4 2 8 1 Scanalyzers 4 | . . . . . . . . 4 . . . Garrison Access 2 | . . . . . . . . . 2 . . Terminal Hacks 38 | . . . 1 . 7 7 . 13 6 2 2 Record 1 | . . . 1 . . . . . . . . Part Schematic 6 | . . . . . 1 1 . 4 . . . Level Access Points 1 | . . . . . . . . . . 1 . Branch Access Points 3 | . . . . . . 1 . 1 1 . . Emergency Access Points 3 | . . . . . . 1 . 1 . . 1 Terminal Index 4 | . . . . . 1 1 . 1 . 1 . Scanalyzer Index 1 | . . . . . . . . 1 . . . Unreport Threat 3 | . . . . . . . . 2 1 . . Locate Traps 9 | . . . . . 2 2 . 1 3 . 1 Patrol Status 2 | . . . . . . . . 1 1 . . Hauler Manifests 1 | . . . . . 1 . . . . . . Zone Layout 4 | . . . . . 2 1 . 1 . . . Fabricator Hacks 13 | . . . . . . 3 . 2 1 6 1 Load Schematic 8 | . . . . . . 1 . 2 1 3 1 Build 5 | . . . . . . 2 . . . 3 . Repair Station Hacks . | . . . . . . . . . . . . Recycling Unit Hacks 12 | . 2 . . . 1 1 . 2 1 5 . Process 2 | . 1 . . . . . . . . 1 . Retrieve Matter 2 | . 1 . . . . . . . . 1 . Retrieve Components 8 | . . . . . 1 1 . 2 1 3 . Scanalyzer 2 | . . . . . . . . 2 . . . Insert Component 2 | . . . . . . . . 2 . . . Garrison Access Hacks 1 | . . . . . . . . . 1 . . Seal Access 1 | . . . . . . . . . 1 . . Unauthorized Hacks 8 | . . . . . 2 1 . 1 1 1 2 Terminals 8 | . . . . . 2 1 . 1 1 1 2 Assimilate 2 | . . . . . 1 . . . . . 1 Botnet 6 | . . . . . 1 1 . 1 1 1 1 Fabricators . | . . . . . . . . . . . . Repair Stations . | . . . . . . . . . . . . Recycling Units . | . . . . . . . . . . . . Scanalyzers . | . . . . . . . . . . . . Garrison Access . | . . . . . . . . . . . . Data Cores Recovered 1 | . . . . . . . . . . 1 . Used 1 | . . . . . . . . . . 1 . Hacking Detections 63 | . 2 . . . 9 11 . 12 13 11 5 Full Trace Events . | . . . . . . . . . . . . Feedback Events . | . . . . . . . . . . . . Feedback Blocked . | . . . . . . . . . . . . Robot Schematics Acquired . | . . . . . . . . . . . . Robots Built . | . . . . . . . . . . . . Matter . | . . . . . . . . . . . . Time . | . . . . . . . . . . . . Total Robot Build Rating . | . . . . . . . . . . . . Part Schematics Acquired 6 | . . . . . 1 1 . 4 . . . Parts Built 8 | . . . . . . 4 . . . 4 . Matter 738 | . . . . . . 358 . . . 380 . Time 369 | . . . . . . 179 . . . 190 . Total Part Build Rating 38 | . . . . . . 18 . . . 20 . Parts Repaired . | . . . . . . . . . . . . Time . | . . . . . . . . . . . . Parts Recycled . | . . . . . . . . . . . . Recycled Matter 35 | . 10 . . . . . . . . 25 . Retrieved Matter 35 | . 10 . . . . . . . . 25 . Retrieved Components 40 | . . . . . 10 10 . 13 3 4 . Parts Scanalyzed 1 | . . . . . . . . 1 . . . Part Schematics Acquired . | . . . . . . . . . . . . Parts Damaged . | . . . . . . . . . . . . Bothacking | -11 -10 -10 -10 -9 -8 -7 -7 -7 -6 -5 -4 ------------ Run | Scr Mat Min Exi Min Mat Fac Was Fac Fac Fac Fac Used RIF Installer . | . . . . . . . . . . . . Robots Hacked . | . . . . . . . . . . . . Non-combat . | . . . . . . . . . . . . Combat . | . . . . . . . . . . . . Robot Hacks Applied . | . . . . . . . . . . . . Relay Couplers Released . | . . . . . . . . . . . . Robots Rewired . | . . . . . . . . . . . . Allies Hacked . | . . . . . . . . . . . . Hacks Repelled . | . . . . . . . . . . . . Allies | -11 -10 -10 -10 -9 -8 -7 -7 -7 -6 -5 -4 -------- Run | Scr Mat Min Exi Min Mat Fac Was Fac Fac Fac Fac Total Allies 22 | . . . . . 1 . 20 . . . 1 Largest Group 20 | . . . . . 1 . 20 20 . . 1 Highest-Rated Group 555 | . . . . . 10 . 555 555 . . 26 Highest-Rated Ally 35 | . . . . . 10 . 35 35 . . 26 Total Orders 1 | . . . . . 1 . . . . . . STAY 1 | . . . . . 1 . . . . . . Ally Attacks 225 | . . . . . . . . 225 . . . Total Damage 4841 | . . . . . . . . 4841 . . . Kills 35 | . . . . . . . . 35 . . . Allies Corrupted . | . . . . . . . . . . . . Allies Melted . | . . . . . . . . . . . . Intel | -11 -10 -10 -10 -9 -8 -7 -7 -7 -6 -5 -4 ------- Run | Scr Mat Min Exi Min Mat Fac Was Fac Fac Fac Fac Robot Analysis Total . | . . . . . . . . . . . . Derelict Logs Recovered . | . . . . . . . . . . . . Drone Launches . | . . . . . . . . . . . . Drone Recoveries . | . . . . . . . . . . . . Exploration | -11 -10 -10 -10 -9 -8 -7 -7 -7 -6 -5 -4 ------------- Run | Scr Mat Min Exi Min Mat Fac Was Fac Fac Fac Fac Turns Passed 7822 | 16 238 136 147 182 1283 1727 95 1135 1917 645 301 Spaces Moved 7820 | 21 275 120 164 135 945 1403 71 1000 2154 886 646 Core 327 | 21 185 . . . . . . . . . 121 Treads . | . . . . . . . . . . . . Legs . | . . . . . . . . . . . . Wheels 5045 | . 90 120 164 135 945 1403 71 1000 1117 . . Hover . | . . . . . . . . . . . . Flight 2448 | . . . . . . . . . 1037 886 525 Fastest Speed 24 | 50 50 80 90 80 80 80 95 92 24 32 37 Average Speed 72 | 50 61 89 90 81 86 90 95 93 67 38 39 Slowest Speed 150 | 50 90 90 90 90 100 120 95 95 150 117 50 Overloaded Moves 3 | . . . . . . . . . 3 . . Propulsion Burnouts . | . . . . . . . . . . . . Robots Hopped 16 | . . . . . . . . . 5 3 8 Cave-ins Triggered . | . . . . . . . . . . . . Exploration Rate (%) 37 | 3 32 39 55 19 61 38 66 35 53 26 24 Regions Visited 11 Branch Regions 3 Pre-discovered Areas 1 | . . . 1 . . . . . . . . Known Exits Taken 1 | . . . . . . . . . . 1 . Unknown Exits Taken 8 | 1 1 1 1 1 1 . . 1 1 . . Scrap Searched . | . . . . . . . . . . . . Spaces Dug 53 | . 5 . . . 6 14 . 1 8 17 2 Terrain Destroyed 766 | . 100 75 . . 76 142 . 48 287 36 2 Melee . | . . . . . . . . . . . . Projectile 24 | . . . . . . . . 5 15 2 2 AOE 742 | . 100 75 . . 76 142 . 43 272 34 . Terrain Rammed . | . . . . . . . . . . . . Walls Destroyed . | . . . . . . . . . . . . Machines Disabled . | . . . . . . . . . . . . Actions | -11 -10 -10 -10 -9 -8 -7 -7 -7 -6 -5 -4 --------- Run | Scr Mat Min Exi Min Mat Fac Was Fac Fac Fac Fac Total 9417 | 25 320 134 163 174 1354 1686 98 1136 2484 1167 676 Wait 843 | . 4 . . 2 299 76 28 32 166 231 5 Move 7780 | 20 274 119 163 134 944 1403 70 999 2143 879 632 Hop 14 | . . . . . . . . . 5 3 6 Pick Up 61 | 4 9 . . 3 14 9 . 10 9 3 . Fast Attach 54 | 1 5 1 . 1 14 15 . 6 6 5 . Attach 41 | . 2 2 . 2 7 8 . . 12 8 . Detach 33 | . . 1 . . 7 6 . 3 6 8 2 Swap 101 | . 1 . . 2 9 38 . 23 26 2 . Drop 76 | . 3 1 . . 17 19 . 15 15 3 3 Fire 369 | . 22 10 . 30 43 104 . 39 88 25 8 Melee . | . . . . . . . . . . . . Ram 3 | . . . . . . . . . . . 3 Kick . | . . . . . . . . . . . . Crush . | . . . . . . . . . . . . Escape Stasis 42 | . . . . . . 8 . 9 8 . 17 Rewire . | . . . . . . . . . . . . Trap . | . . . . . . . . . . . . Miscellaneous . | . . . . . . . . . . . . Route ------- -11/Scrapyard -10/Materials -10/Mines -10/Exiles -9/Mines -8/Materials (discovered 2 exits: *Fac x2) -7/Factory (discovered 3 exits: *Fac / *Low x2) -7/Waste -7/Factory (discovered 4 exits: *Fac x2 / Low x2) -6/Factory (discovered 5 exits: *Fac / *Low x2 / Ext x2) -5/Factory (discovered 4 exits: *Fac x4) -4/Factory History --------- Turn | Location | Event 10 | -11/Scrapyard | Discovered new exit (range 14) 17 | -11/Scrapyard | Entered Materials 112 | -10/Materials | Discovered new exit (range 10) 255 | -10/Materials | Entered Mines 256 | -10/Mines | Assembled infested the area 272 | -10/Mines | Met 8R-AWN 285 | -10/Mines | Destroyed 14 combat bots 310 | -10/Mines | Lost 3 parts (1n2w) 312 | -10/Mines | Build established: Mutant 387 | -10/Mines | Discovered new exit (range 5) 391 | -10/Mines | Entered Exiles 416 | -10/Exiles | Welcomed by 8R-AWN 428 | -10/Exiles | Met EX-HEX 455 | -10/Exiles | Met EX-BIN 466 | -10/Exiles | Aligned with FarCom system 467 | -10/Exiles | Given EX-Vault access code 492 | -10/Exiles | Met EX-DEC 497 | -10/Exiles | Learned location of Zion (-7) 531 | -10/Exiles | Discovered new exit (range 10) 538 | -10/Exiles | Entered Mines 558 | -9/Mines | Discovered new exit (range 11) 720 | -9/Mines | Entered Materials 720 | -8/Materials | Evolved 4 slots: Power x1, Propulsion x1, Utility x1, Weapon x1 1188 | -8/Materials | Build established: Scavenger-Mutant 1280 | -8/Materials | Discovered new exit (range 15) 1304 | -8/Materials | Lost 5 parts (3n1u1w) 1795 | -8/Materials | Build established: Scavenger-Skirmisher 1948 | -8/Materials | Discovered new exit (range 15) 2003 | -8/Materials | Entered Factory 2003 | -7/Factory | Evolved 2 slots: Propulsion x1, Utility x1 2114 | -7/Factory | Destroyed 8 combat bots 2443 | -7/Factory | Lost 8 parts (1p5n2w) 2691 | -7/Factory | Build established: Scavenger-Mutant 2814 | -7/Factory | Fabricated Imp. Antigrav System? 2990 | -7/Factory | Discovered new exit (range 16) 3268 | -7/Factory | Fabricated Arm. Wheel? 3500 | -7/Factory | Local fabrication network quarantined 3549 | -7/Factory | Discovered new exit (range 16) 3660 | -7/Factory | Identified exit to Lower Caves 3730 | -7/Factory | Sucked down chute 3730 | -7/Factory | Entered Waste 3731 | -7/Waste | Joined by Warlord forces that had cleared the area 3784 | -7/Waste | Discovered new exit (range 13) 3825 | -7/Waste | Entered Factory 3825 | -7/Factory | Accompanied by 20 allies 4382 | -7/Factory | Discovered new exit (range 8) 4842 | -7/Factory | Discovered new exit (range 14) 4960 | -7/Factory | Entered another Factory area 4960 | -6/Factory | Evolved 2 slots: Propulsion x2 5468 | -6/Factory | Lost 5 parts (3n2w) 5821 | -6/Factory | Discovered new exit (range 14) 6010 | -6/Factory | First assault squad dispatched 6059 | -6/Factory | Identified exit to Lower Caves 6059 | -6/Factory | Identified exit to Extension 6244 | -6/Factory | Destroyed 7 combat bots 6306 | -6/Factory | Spotted B-75 Beast 6342 | -6/Factory | Destroyed B-75 Beast 6364 | -6/Factory | Lost 5 parts (3n1u1w) 6468 | -6/Factory | Lost 4 parts (1p1n2w) 6708 | -6/Factory | Build established: Sprinter 6877 | -6/Factory | Entered another Factory area 6877 | -5/Factory | Evolved 2 slots: Utility x2 6899 | -5/Factory | Discovered new exit (range 15) 6998 | -5/Factory | Fabricated Nuclear Pulse Thruster (x2) 7059 | -5/Factory | Build established: Mutant 7077 | -5/Factory | Local fabrication network quarantined 7095 | -5/Factory | Fabricated Fission Core (x2) 7136 | -5/Factory | Discovered new exit (range 8) 7177 | -5/Factory | First assault squad dispatched 7281 | -5/Factory | Discovered new exit (range 7) 7306 | -5/Factory | Spotted B-75 Beast 7353 | -5/Factory | Identified exit to Factory 7522 | -5/Factory | Entered another Factory area 7522 | -4/Factory | Evolved 2 slots: Utility x2 7749 | -4/Factory | Spotted B-86 Titan 7785 | -4/Factory | Core integrity fell below 50% 7813 | -4/Factory | Core integrity fell below 20% 7823 | -4/Factory | Self-destructed Last Messages --------------- 07778_ P-70 Sage resets S-27 Virus, system corruption cleaned. 07783_ Subcomponent Replicator disabled. 07786_ O-24 Administrator: "IFF HANDSHAKE FAILED. SECURING TERMINAL." 07786_ ALERT: Hostiles spotted, dispatching reinforcements to Terminal F017. 07788_ Connecting with Terminal... >>Trojan(Assimilate) Trojan loaded successfully. Testing... System interface override in place. 07790_ O-24 Administrator accesses terminal... 07790_ O-24 Administrator IFF database reprogrammed. 07791_ U-05 Engineer lays Concrete. 07807_ Slammed into G-67 Veteran. 07808_ T-07 Excavator is excavating. 07808_ Slammed into G-67 Veteran. 07810_ Triggered Tiamat Bomb Trap. 07810_ An explosion rips through the floor. 07810_ T-07 Excavator destroyed. 07821_ Slammed into R-10 Processor. Map ----- +----------------------------------------------------+ | ???????????????????????????????????????######### | | ???????????????????????????????????????# | | ???????????????????????????????????????# | | ???????????????????????????????????????# | | ???????????????????????????????????????# ##### | | ??????????????????????????????????????## ##??### | | ??????????????????????????????????????# #????? | | ??????????????????????##??????????????# #????? | | ??????????????????????# ????########??# #????? | | ??????????????????????? Y???+ #??# #????? | | ??????????????????????? ???# """ #??# #????? | | ???????????????????????# ???# """ ###### ###????? | | ???????????????????????# ???# """ ## # ##????? | | ???????????????????????# ####p g # w #????? | | ???????????????????????# +g"""g / %!#????? | | ???????????????????????# p# """ # ##????? | | ???????????????????????# p#g""" # #?????? | | ???????????????????????# g# #?????? | | ???????????????????????# # """ # #?????? | | ???????????????????????# # """ ##Y## ###?????? | | ?????????????## ######## # """ ]## #?##???????? | | ????????????# # ## #??????????? | | ????????????# ######## ??????????? | | ????????????# ] #?????????? | | ????????????# ###+######## #?????????? | | ????????????# #@ % #???## ##?????????? | | ????????????? #] #????? ???????????? | | ?????????????? ?# R]] #????? ???????????? | | ?????????????? ?# ]]] #????? ???????????? | | ??????????????? ??# ]]] #????? ???????????? | | ??????????????? ???# #????? ???????????? | | ???????????????? ?????#+##+###????? ???????????? | | ?????????????????????????????????????????????????? | | ?????????????????????????????????????????????????? | | ?????????????????????????????????????????????????? | | ?????????????????????????????????????????????????? | | ?????????????????????????????????????????????????? | | ?????????????????????????????????????????????????? | | ?????????????????????????????????????????????????? | | ?????????????????????????????????????????????????? | | ?????????????????????????????????????????????????? | | ?????????????????????????????????????????????????? | | ?????????????????????????????????????????????????? | | ?????????????????????????????????????????????????? | | ?????????????????????????????????????????????????? | | ?????????????????????????????????????????????????? | | ?????????????????????????????????????????????????? | | ?????????????????????????????????????????????????? | | ?????????????????????????????????????????????????? | | ?????????????????????????????????????????????????? | +----------------------------------------------------+ Best States ------------- Heat Dissipation 48 Energy Generation 31 Energy Capacity 520 Matter Stores 300 Matter Capacity 300 Sight Range 16 Terrain Scan Range 20 Terrain Scan Density 10 Armor Coverage 150 Propulsion Shielding 33 Evasion (%) 64 Kinecelleration 30 Item Schematics ----------------- Arm. Wheel | -8/Materials | Hacked Imp. VTOL Module | -7/Factory | Hacked Xenon Bombardment Thruster | -7/Factory | Hacked Hvy. Missile Launcher | -7/Factory | Hacked Nuclear Pulse Thruster | -7/Factory | Hacked Fission Core | -7/Factory | Hacked Robot Schematics ------------------ None Fabricated ------------ Imp. Antigrav System | x2 | -7/Factory | Preloaded Arm. Wheel | x2 | -7/Factory Nuclear Pulse Thruster | x2 | -5/Factory Fission Core | x2 | -5/Factory Alien Tech Used ----------------- None Achievements -------------- None Challenges ------------ None Game ------ Seed StructuralInertialAxe Manual? 0 Play Time 08:12:16 Cumulative 365.9 hours Start 2021.01.02 @ 22:09:51 End 2021.01.13 @ 21:29:56 Sessions 20 Manual Loads 0 Difficulty Rogue Special Mode AFD2018/Launchers Game No. 143 Rogue 107 Adventurer 36 Explorer 0 Win Type - Total 11 Types 11/0/0/0/0/0/0/0/0 Lore% 52 Gallery% 58 Achievement% 43 Wizard Run 0 Options --------- ASCII 0 Keyboard 1 Movement Vi Keybinds 0 Fullscreen 1 Font 18/Terminus Map View 76x50 Tactical HUD 1 Map Filters NONE Filters NONE Steam 0 RUN: fdea5d56-3517-4dbf-8fa5-8d545365032e